fUSD/lending_fUSD_20251206
["ID","MTS","AMOUNT","RATE_DAILY","PERIOD"]
[396559281,1765050638399,-1834.48,0.00016438,2]
[396559282,1765050638408,-500.0,0.00016438,2]
[396559283,1765050638418,-500.0,0.00016438,2]
[396559284,1765050638428,-514.59,0.00016438,2]
[396559285,1765050638437,-500.0,0.00016438,2]
[396559286,1765050638447,-500.0,0.00016438,2]
[396559287,1765050638457,-504.30609574,0.00016438,2]
[396559288,1765050638466,-500.0,0.00016438,2]
[396559289,1765050638475,-500.0,0.00016438,2]
[396559290,1765050638484,-500.0,0.00016438,2]
[396559291,1765050638494,-500.0,0.00016438,2]
[396559292,1765050638503,-500.0,0.00016438,2]
[396559293,1765050638513,-503.56095678,0.00016438,2]
[396559294,1765050638522,-2006.32,0.00016438,2]
[396559295,1765050638532,-500.0,0.00016438,2]
[396559296,1765050638540,-500.0,0.00016438,2]
[396559297,1765050638550,-500.0,0.00016438,2]
[396559298,1765050638559,-2123.56,0.00016438,2]
[396559299,1765050638568,-500.0,0.00016438,2]
[396559300,1765050638577,-500.0,0.00016438,2]
[396559301,1765050638587,-500.0,0.00016438,2]
[396559302,1765050638596,-502.55965766,0.00016438,2]
[396559303,1765050638606,-500.0,0.00016438,2]
[396559304,1765050638615,-500.0,0.00016438,2]
[396559305,1765050638625,-500.0,0.00016438,2]
[396559306,1765050638634,-500.0,0.00016438,2]
[396559307,1765050638644,-500.0,0.00016438,2]
[396559308,1765050638653,-507.08521715,0.00016438,2]
[396559309,1765050638664,-500.0,0.00016438,2]
[396559310,1765050638674,-500.0,0.00016438,2]
[396559311,1765050638684,-1709.84,0.00016438,2]
[396559312,1765050638694,-2132.21,0.00016438,2]
[396559313,1765050638704,-500.0,0.00016438,2]
[396559314,1765050638714,-644.24331964,0.00016438,2]
[396559315,1765050638723,-500.0,0.00016438,2]
[396559316,1765050638733,-502.80495999,0.00016438,2]
[396559317,1765050638743,-500.0,0.00016438,2]
[396559318,1765050638752,-500.0,0.00016438,2]
[396559319,1765050638761,-500.0,0.00016438,2]
[396559320,1765050638770,-501.82077059,0.00016438,2]
[396559321,1765050638780,-500.0,0.00016438,2]
[396559322,1765050638790,-500.0,0.00016438,2]
[396559323,1765050638799,-500.0,0.00016438,2]
[396559324,1765050638808,-293.313751,0.00016438,2]
[396559325,1765050638818,-500.0,0.00016438,2]
[396559326,1765050638827,-504.58328957,0.00016438,2]
[396559327,1765050638836,-500.0,0.00016438,2]
[396559328,1765050638846,-500.0,0.00016438,2]
[396559329,1765050638855,-500.0,0.00016438,2]
[396559330,1765050638865,-500.0,0.00016438,2]
[396559331,1765050638875,-500.0,0.00016438,2]
[396559332,1765050638884,-277.50564018,0.00016438,2]
[396559333,1765050638894,-500.0,0.00016438,2]
[396559334,1765050638904,-500.0,0.00016438,2]
[396559335,1765050638914,-500.0,0.00016438,2]
[396559336,1765050638923,-500.0,0.00016438,2]
[396559337,1765050638933,-500.0,0.00016438,2]
[396559338,1765050638943,-579.2677227,0.00016438,2]
[396559339,1765050638953,-2176.86,0.00016438,2]
[396559340,1765050638963,-500.0,0.00016438,2]
[396559341,1765050638973,-500.0,0.00016438,2]
[396559342,1765050638984,-500.0,0.00016438,2]
[396559343,1765050638994,-500.0,0.00016438,2]
[396559344,1765050639004,-500.0,0.00016438,2]
[396559345,1765050639013,-500.0,0.00016438,2]
[396559346,1765050639022,-500.71730624,0.00016438,2]
[396559347,1765050639035,-500.0,0.00016438,2]
[396559348,1765050639045,-750.87,0.00016438,2]
[396559349,1765050639055,-500.0,0.00016438,2]
[396559350,1765050639066,-503.36454911,0.00016438,2]
[396559351,1765050639079,-502.30068383,0.00016438,2]
[396559352,1765050639088,-986.6,0.00016438,2]
[396559353,1765050639098,-501.81566196,0.00016438,2]
[396559354,1765050639107,-1575.46,0.00016438,2]
[396559355,1765050639118,-1725.92,0.00016438,2]
[396559356,1765050639127,-500.0,0.00016438,2]
[396559357,1765050639136,-500.0,0.00016438,2]
[396559358,1765050639148,-500.0,0.00016438,2]
[396559359,1765050639157,-500.0,0.00016438,2]
[396559360,1765050639167,-500.0,0.00016438,2]
[396559361,1765050639176,-500.0,0.00016438,2]
[396559362,1765050639185,-500.0,0.00016438,2]
[396559363,1765050639194,-500.0,0.00016438,2]
[396559364,1765050639203,-500.0,0.00016438,2]
[396559365,1765050639213,-500.0,0.00016438,2]
[396559366,1765050639222,-500.0,0.00016438,2]
[396559367,1765050639231,-500.0,0.00016438,2]
[396559368,1765050639240,-900.07,0.00016438,2]
[396559369,1765050639249,-500.0,0.00016438,2]
[396559370,1765050639259,-500.0,0.00016438,2]
[396559371,1765050639268,-500.0,0.00016438,2]
[396559372,1765050639277,-500.0,0.00016438,2]
[396559373,1765050639286,-500.0,0.00016438,2]
[396559374,1765050639296,-402.86164045,0.00016438,2]
[396559375,1765050639306,-500.0,0.00016438,2]
[396559376,1765050639316,-506.46881292,0.00016438,2]
[396559377,1765050639325,-599.18603422,0.00016438,2]
[396559378,1765050639335,-500.0,0.00016438,2]
[396559379,1765050639345,-403.38424623,0.00016438,2]
[396559380,1765050639354,-500.0,0.00016438,2]
[396559381,1765050639364,-532.69,0.00016438,2]
[396559382,1765050639374,-500.0,0.00016438,2]
[396559383,1765050639383,-462.30656932,0.00016438,2]
[396559384,1765050639403,-37.69343068,0.00016438,2]
[396559385,1765050639413,-522.45,0.00016438,2]
[396559386,1765050639423,-501.41831708,0.00016438,2]
[396559387,1765050639432,-500.0,0.00016438,2]
[396559388,1765050639441,-500.0,0.00016438,2]
[396559389,1765050639451,-500.0,0.00016438,2]
[396559390,1765050639460,-501.83698735,0.00016438,2]
[396559391,1765050639470,-500.0,0.00016438,2]
[396559392,1765050639479,-1831.7,0.00016438,2]
[396559393,1765050639488,-1115.75,0.00016438,2]
[396559394,1765050639497,-771.14,0.00016438,2]
[396559395,1765050639507,-500.0,0.00016438,2]
[396559396,1765050639516,-500.0,0.00016438,2]
[396559397,1765050639527,-504.323268,0.00016438,2]
[396559398,1765050639538,-1758.99,0.00016438,2]
[396559399,1765050639548,-2029.7,0.00016438,2]
[396559400,1765050639557,-1318.5,0.00016438,2]
[396559401,1765050639567,-500.0,0.00016438,2]
[396559402,1765050639576,-500.0,0.00016438,2]
[396559403,1765050639585,-500.0,0.00016438,2]
[396559404,1765050639594,-500.0,0.00016438,2]
[396559405,1765050639604,-534.31179082,0.00016438,2]
[396559406,1765050639614,-1707.68,0.00016438,2]
[396559407,1765050639623,-500.0,0.00016438,2]
[396559408,1765050639633,-500.0,0.00016438,2]
[396559409,1765050639642,-500.0,0.00016438,2]
[396559410,1765050639651,-500.0,0.00016438,2]
[396559411,1765050639662,-501.88025052,0.00016438,2]
[396559412,1765050639671,-500.0,0.00016438,2]
[396559413,1765050639680,-500.0,0.00016438,2]
[396559414,1765050639689,-500.0,0.00016438,2]
[396559415,1765050639700,-770.33,0.00016438,2]
[396559416,1765050639710,-500.0,0.00016438,2]
[396559417,1765050639721,-500.0,0.00016438,2]
[396559418,1765050639730,-500.0,0.00016438,2]
[396559419,1765050639740,-1501.92,0.00016438,2]
[396559420,1765050639751,-500.0,0.00016438,2]
[396559421,1765050639760,-500.0,0.00016438,2]
[396559422,1765050639771,-566.13,0.00016438,2]
[396559423,1765050639781,-501.92491104,0.00016438,2]
[396559424,1765050639791,-500.0,0.00016438,2]
[396559425,1765050639801,-501.90929322,0.00016438,2]
[396559426,1765050639811,-500.0,0.00016438,2]
[396559427,1765050639820,-500.0,0.00016438,2]
[396559428,1765050639830,-500.0,0.00016438,2]
[396559429,1765050639840,-500.0,0.00016438,2]
[396559430,1765050639850,-500.0,0.00016438,2]
[396559431,1765050639860,-500.0,0.00016438,2]
[396559432,1765050639870,-1989.94,0.00016438,2]
[396559433,1765050639880,-500.0,0.00016438,2]
[396559434,1765050639890,-500.0,0.00016438,2]
[396559435,1765050639899,-500.0,0.00016438,2]
[396559436,1765050639908,-865.75,0.00016438,2]
[396559437,1765050639917,-500.0,0.00016438,2]
[396559438,1765050639926,-500.0,0.00016438,2]
[396559439,1765050639936,-500.0,0.00016438,2]
[396559440,1765050639945,-500.0,0.00016438,2]
[396559441,1765050639955,-500.0,0.00016438,2]
[396559442,1765050639964,-500.0,0.00016438,2]
[396559443,1765050639973,-500.0,0.00016438,2]
[396559444,1765050639983,-1827.52,0.00016438,2]
[396559445,1765050639993,-500.0,0.00016438,2]
[396559446,1765050640002,-500.0,0.00016438,2]
[396559447,1765050640012,-500.0,0.00016438,2]
[396559448,1765050640021,-500.0,0.00016438,2]
[396559449,1765050640031,-500.0,0.00016438,2]
[396559450,1765050640043,-500.0,0.00016438,2]
[396559451,1765050640052,-500.0,0.00016438,2]
[396559452,1765050640062,-529.62858054,0.00016438,2]
[396559453,1765050640071,-591.46,0.00016438,2]
[396559454,1765050640081,-2327.91,0.00016438,2]
[396559455,1765050640090,-2891.27,0.00016438,2]
[396559456,1765050640099,-500.0,0.00016438,2]
[396559457,1765050640108,-810.94,0.00016438,2]
[396559458,1765050640118,-500.0,0.00016438,2]
[396559459,1765050640128,-500.0,0.00016438,2]
[396559460,1765050640138,-500.0,0.00016438,2]
[396559461,1765050640147,-500.0,0.00016438,2]
[396559462,1765050640157,-500.0,0.00016438,2]
[396559463,1765050640166,-1902.28,0.00016438,2]
[396559464,1765050640175,-500.0,0.00016438,2]
[396559465,1765050640184,-500.0,0.00016438,2]
[396559466,1765050640193,-504.09226793,0.00016438,2]
[396559467,1765050640203,-500.0,0.00016438,2]
[396559468,1765050640212,-500.0,0.00016438,2]
[396559469,1765050640222,-500.0,0.00016438,2]
[396559470,1765050640231,-500.0,0.00016438,2]
[396559471,1765050640240,-500.0,0.00016438,2]
[396559472,1765050640249,-2153.26,0.00016438,2]
[396559473,1765050640258,-655.0,0.00016438,2]
[396559474,1765050640267,-500.0,0.00016438,2]
[396559475,1765050640276,-500.0,0.00016438,2]
[396559476,1765050640285,-500.0,0.00016438,2]
[396559477,1765050640295,-500.0,0.00016438,2]
[396559478,1765050640304,-500.0,0.00016438,2]
[396559479,1765050640313,-500.0,0.00016438,2]
[396559480,1765050640322,-500.0,0.00016438,2]
[396559481,1765050640331,-500.0,0.00016438,2]
[396559482,1765050640341,-500.0,0.00016438,2]
[396559483,1765050640350,-619.0247673,0.00016438,2]
[396559484,1765050640360,-500.0,0.00016438,2]
[396559485,1765050640369,-500.0,0.00016438,2]
[396559486,1765050640379,-1830.4,0.00016438,2]
[396559487,1765050640388,-556.95,0.00016438,2]
[396559488,1765050640397,-500.60309996,0.00016438,2]
[396559489,1765050640406,-500.0,0.00016438,2]
[396559490,1765050640419,-451.60450542,0.00016438,2]
[396559491,1765050640430,-500.0,0.00016438,2]
[396559492,1765050640439,-500.0,0.00016438,2]
[396559493,1765050640448,-500.0,0.00016438,2]
[396559494,1765050640458,-500.0,0.00016438,2]
[396559495,1765050640467,-500.0,0.00016438,2]
[396559496,1765050640476,-2378.75,0.00016438,2]
[396559497,1765050640486,-500.0,0.00016438,2]
[396559498,1765050640495,-500.0,0.00016438,2]
[396559499,1765050640505,-500.0,0.00016438,2]
[396559500,1765050640515,-500.95075378,0.00016438,2]
[396559501,1765050640524,-2061.33,0.00016438,2]
[396559502,1765050640533,-2385.96,0.00016438,2]
[396559504,1765050640542,-500.42233079,0.00016438,2]
[396559505,1765050640551,-500.0,0.00016438,2]
[396559506,1765050640560,-500.0,0.00016438,2]
[396559507,1765050640570,-500.19884805,0.00016438,2]
[396559508,1765050640579,-501.4506619,0.00016438,2]
[396559509,1765050640588,-500.92222263,0.00016438,2]
[396559510,1765050640598,-500.0,0.00016438,2]
[396559511,1765050640607,-620.0,0.00016438,2]
[396559512,1765050640617,-500.0,0.00016438,2]
[396559513,1765050640627,-501.36478744,0.00016438,2]
[396559514,1765050640637,-500.0,0.00016438,2]
[396559515,1765050640647,-500.0,0.00016438,2]
[396559516,1765050640657,-500.0,0.00016438,2]
[396559517,1765050640666,-500.0,0.00016438,2]
[396559518,1765050640675,-500.0,0.00016438,2]
[396559519,1765050640684,-4157.51,0.00016438,2]
[396559520,1765050640693,-502.96113802,0.00016438,2]
[396559521,1765050640703,-537.34,0.00016438,2]
[396559522,1765050640712,-500.0,0.00016438,2]
[396559523,1765050640722,-500.0,0.00016438,2]
[396559524,1765050640731,-300.0,0.00016438,2]
[396559525,1765050640740,-1740.82,0.00016438,2]
[396559526,1765050640750,-500.0,0.00016438,2]
[396559527,1765050640761,-500.0,0.00016438,2]
[396559528,1765050640771,-500.0,0.00016438,2]
[396559529,1765050640781,-500.0,0.00016438,2]
[396559530,1765050640791,-500.0,0.00016438,2]
[396559531,1765050640806,-500.0,0.00016438,2]
[396559532,1765050640816,-500.0,0.00016438,2]
[396559533,1765050640827,-500.0,0.00016438,2]
[396559534,1765050640836,-500.0,0.00016438,2]
[396559535,1765050640846,-500.0,0.00016438,2]
[396559536,1765050640856,-500.0,0.00016438,2]
[396559537,1765050640866,-500.0,0.00016438,2]
[396559538,1765050640876,-500.0,0.00016438,2]
[396559539,1765050640887,-500.0,0.00016438,2]
[396559540,1765050640898,-500.0,0.00016438,2]
[396559541,1765050640908,-500.0,0.00016438,2]
[396559542,1765050640917,-569.79,0.00016438,2]
[396559543,1765050640927,-572.16,0.00016438,2]
[396559544,1765050640938,-500.0,0.00016438,2]
[396559545,1765050640947,-500.0,0.00016438,2]
[396559546,1765050640958,-500.0,0.00016438,2]
[396559547,1765050640967,-500.0,0.00016438,2]
[396559548,1765050640977,-500.0,0.00016438,2]
[396559549,1765050640986,-500.0,0.00016438,2]
[396559550,1765050640996,-580.34600065,0.00016438,2]
[396559551,1765050641005,-583.66360748,0.00016438,2]
[396559552,1765050641015,-500.0,0.00016438,2]
[396559553,1765050641025,-500.0,0.00016438,2]
[396559554,1765050641037,-500.0,0.00016438,2]
[396559555,1765050641047,-500.0,0.00016438,2]
[396559556,1765050641057,-2069.94,0.00016438,2]
[396559557,1765050641066,-500.0,0.00016438,2]
[396559558,1765050641075,-500.0,0.00016438,2]
[396559559,1765050641086,-500.0,0.00016438,2]
[396559560,1765050641095,-509.28,0.00016438,2]
[396559561,1765050641106,-2258.8,0.00016438,2]
[396559562,1765050641116,-500.0,0.00016438,2]
[396559563,1765050641125,-500.0,0.00016438,2]
[396559564,1765050641135,-2125.16,0.00016438,2]
[396559565,1765050641145,-500.0,0.00016438,2]
[396559566,1765050641155,-500.0,0.00016438,2]
[396559567,1765050641165,-500.0,0.00016438,2]
[396559568,1765050641175,-500.0,0.00016438,2]
[396559569,1765050641188,-501.61657477,0.00016438,2]
[396559570,1765050641199,-551.61,0.00016438,2]
[396559571,1765050641208,-503.62,0.00016438,2]
[396559572,1765050641218,-500.0,0.00016438,2]
[396559573,1765050641227,-500.0,0.00016438,2]
[396559574,1765050641237,-870.29,0.00016438,2]
[396559575,1765050641247,-500.0,0.00016438,2]
[396559576,1765050641256,-500.0,0.00016438,2]
[396559577,1765050641266,-654.9,0.00016438,2]
[396559578,1765050641276,-427.26402063,0.00016438,2]
[396559579,1765050641298,-72.73597937,0.00016438,2]
[396559580,1765050641308,-500.0,0.00016438,2]
[396559581,1765050641318,-500.0,0.00016438,2]
[396559582,1765050641327,-544.97,0.00016438,2]
[396559583,1765050641336,-500.0,0.00016438,2]
[396559584,1765050641346,-500.0,0.00016438,2]
[396559585,1765050641355,-500.0,0.00016438,2]
[396559586,1765050641365,-500.0,0.00016438,2]
[396559587,1765050641375,-504.05219158,0.00016438,2]
[396559588,1765050641385,-1001.73,0.00016438,2]
[396559589,1765050641394,-500.0,0.00016438,2]
[396559590,1765050641405,-500.0,0.00016438,2]
[396559591,1765050641414,-512.92213832,0.00016438,2]
[396559592,1765050641425,-500.0,0.00016438,2]
[396559593,1765050641436,-500.0,0.00016438,2]
[396559594,1765050641446,-500.0,0.00016438,2]
[396559595,1765050641457,-500.0,0.00016438,2]
[396559596,1765050641466,-500.0,0.00016438,2]
[396559597,1765050641476,-500.0,0.00016438,2]
[396559598,1765050641486,-500.0,0.00016438,2]
[396559599,1765050641497,-500.0,0.00016438,2]
[396559600,1765050641507,-500.0,0.00016438,2]
[396559601,1765050641517,-500.0,0.00016438,2]
[396559602,1765050641527,-500.0,0.00016438,2]
[396559603,1765050641536,-500.0,0.00016438,2]
[396559604,1765050641546,-2312.49,0.00016438,2]
[396559605,1765050641556,-516.24817689,0.00016438,2]
[396559606,1765050641570,-502.335444,0.00016438,2]
[396559607,1765050641579,-502.01644999,0.00016438,2]
[396559608,1765050641589,-500.0,0.00016438,2]
[396559609,1765050641600,-500.0,0.00016438,2]
[396559610,1765050641611,-500.0,0.00016438,2]
[396559611,1765050641621,-500.0,0.00016438,2]
[396559612,1765050641632,-500.0,0.00016438,2]
[396559613,1765050641642,-1757.28,0.00016438,2]
[396559614,1765050641652,-500.0,0.00016438,2]
[396559615,1765050641662,-1610.13,0.00016438,2]
[396559616,1765050641675,-502.75525601,0.00016438,2]
[396559617,1765050641684,-500.0,0.00016438,2]
[396559618,1765050641694,-500.0,0.00016438,2]
[396559619,1765050641704,-500.0,0.00016438,2]
[396559620,1765050641713,-501.76306707,0.00016438,2]
[396559621,1765050641724,-1903.7,0.00016438,2]
[396559622,1765050641733,-500.0,0.00016438,2]
[396559623,1765050641743,-500.0,0.00016438,2]
[396559624,1765050641753,-500.0,0.00016438,2]
[396559625,1765050641764,-500.0,0.00016438,2]
[396559626,1765050641774,-2283.08,0.00016438,2]
[396559627,1765050641785,-500.0,0.00016438,2]
[396559628,1765050641795,-500.0,0.00016438,2]
[396559629,1765050641805,-500.0,0.00016438,2]
[396559630,1765050641814,-500.0,0.00016438,2]
[396559631,1765050641824,-1067.17,0.00016438,2]
[396559632,1765050641833,-500.0,0.00016438,2]
[396559633,1765050641843,-500.0,0.00016438,2]
[396559634,1765050641853,-500.0,0.00016438,2]
[396559635,1765050641865,-500.0,0.00016438,2]
[396559636,1765050641880,-602.53,0.00016438,2]
[396559637,1765050641894,-500.0,0.00016438,2]
[396559638,1765050641903,-500.0,0.00016438,2]
[396559639,1765050641913,-500.0,0.00016438,2]
[396559640,1765050641923,-614.15,0.00016438,2]
[396559641,1765050641933,-500.0,0.00016438,2]
[396559642,1765050641943,-500.0,0.00016438,2]
[396559643,1765050641953,-500.0,0.00016438,2]
[396559644,1765050641966,-500.0,0.00016438,2]
[396559645,1765050641976,-500.0,0.00016438,2]
[396559646,1765050641986,-500.0,0.00016438,2]
[396559647,1765050641995,-500.0,0.00016438,2]
[396559648,1765050642005,-500.0,0.00016438,2]
[396559649,1765050642016,-500.0,0.00016438,2]
[396559650,1765050642026,-502.45074835,0.00016438,2]
[396559651,1765050642040,-500.0,0.00016438,2]
[396559652,1765050642051,-1877.58,0.00016438,2]
[396559653,1765050642061,-2076.36,0.00016438,2]
[396559654,1765050642070,-1312.31,0.00016438,2]
[396559655,1765050642080,-500.0,0.00016438,2]
[396559656,1765050642090,-500.0,0.00016438,2]
[396559657,1765050642373,-500.0,0.00016438,2]
[396559658,1765050642382,-500.0,0.00016438,2]
[396559659,1765050642392,-500.0,0.00016438,2]
[396559660,1765050642402,-1476.59,0.00016438,2]
[396559661,1765050642412,-500.0,0.00016438,2]
[396559662,1765050642422,-500.0,0.00016438,2]
[396559663,1765050642432,-500.0,0.00016438,2]
[396559664,1765050642442,-1879.53,0.00016438,2]
[396559665,1765050642451,-2042.14,0.00016438,2]
[396559666,1765050642461,-2647.78,0.00016438,2]
[396559667,1765050642471,-501.7503284,0.00016438,2]
[396559668,1765050642480,-500.0,0.00016438,2]
[396559669,1765050642490,-500.0,0.00016438,2]
[396559670,1765050642499,-500.0,0.00016438,2]
[396559671,1765050642508,-281.44786632,0.00016438,2]
[396559672,1765050642518,-500.0,0.00016438,2]
[396559673,1765050642528,-500.0,0.00016438,2]
[396559674,1765050642537,-500.0,0.00016438,2]
[396559675,1765050642548,-500.0,0.00016438,2]
[396559676,1765050642557,-500.0,0.00016438,2]
[396559677,1765050642568,-500.0,0.00016438,2]
[396559678,1765050642578,-1726.18,0.00016438,2]
[396559679,1765050642588,-502.62184346,0.00016438,2]
[396559680,1765050642598,-503.86781822,0.00016438,2]
[396559681,1765050642607,-2175.36,0.00016438,2]
[396559682,1765050642617,-500.0,0.00016438,2]
[396559683,1765050642626,-500.0,0.00016438,2]
[396559684,1765050642636,-500.0,0.00016438,2]
[396559685,1765050642645,-500.0,0.00016438,2]
[396559686,1765050642655,-502.946495,0.00016438,2]
[396559687,1765050642664,-1954.11,0.00016438,2]
[396559688,1765050642674,-6988.53,0.00016438,2]
[396559689,1765050642683,-500.0,0.00016438,2]
[396559690,1765050642692,-522.80266583,0.00016438,2]
[396559691,1765050642702,-500.0,0.00016438,2]
[396559692,1765050642711,-500.0,0.00016438,2]
[396559693,1765050642721,-1368.72,0.00016438,2]
[396559694,1765050642731,-500.0,0.00016438,2]
[396559695,1765050642740,-2083.39,0.00016438,2]
[396559696,1765050642750,-500.0,0.00016438,2]
[396559697,1765050642759,-500.0,0.00016438,2]
[396559698,1765050642768,-503.16031696,0.00016438,2]
[396559699,1765050642777,-1899.54,0.00016438,2]
[396559700,1765050642786,-500.0,0.00016438,2]
[396559701,1765050642795,-500.0,0.00016438,2]
[396559702,1765050642805,-500.0,0.00016438,2]
[396559703,1765050642815,-500.0,0.00016438,2]
[396559704,1765050642825,-500.0,0.00016438,2]
[396559705,1765050642834,-500.0,0.00016438,2]
[396559706,1765050642843,-500.0,0.00016438,2]
[396559707,1765050642853,-500.0,0.00016438,2]
[396559708,1765050642862,-500.0,0.00016438,2]
[396559709,1765050642872,-500.0,0.00016438,2]
[396559710,1765050642881,-500.0,0.00016438,2]
[396559711,1765050642891,-500.0,0.00016438,2]
[396559712,1765050642901,-1556.24,0.00016438,2]
[396559713,1765050642910,-503.41,0.00016438,2]
[396559714,1765050642920,-500.0,0.00016438,2]
[396559715,1765050642930,-500.0,0.00016438,2]
[396559716,1765050642939,-522.45,0.00016438,2]
[396559717,1765050642948,-1877.39,0.00016438,2]
[396559718,1765050642957,-500.0,0.00016438,2]
[396559719,1765050642968,-500.0,0.00016438,2]
[396559720,1765050642979,-500.0,0.00016438,2]
[396559721,1765050642988,-640.5,0.00016438,2]
[396559722,1765050642997,-501.77296066,0.00016438,2]
[396559723,1765050643007,-1891.11,0.00016438,2]
[396559724,1765050643017,-500.0,0.00016438,2]
[396559725,1765050643026,-502.49548683,0.00016438,2]
[396559726,1765050643040,-500.0,0.00016438,2]
[396559727,1765050643049,-2073.85,0.00016438,2]
[396559728,1765050643059,-500.0,0.00016438,2]
[396559729,1765050643069,-5850.44,0.00016438,2]
[396559730,1765050643080,-500.0,0.00016438,2]
[396559731,1765050643089,-503.09490871,0.00016438,2]
[396559732,1765050643098,-502.82022994,0.00016438,2]
[396559733,1765050643108,-500.0,0.00016438,2]
[396559734,1765050643119,-500.0,0.00016438,2]
[396559735,1765050643128,-500.0,0.00016438,2]
[396559736,1765050643137,-1727.93,0.00016438,2]
[396559737,1765050643147,-500.0,0.00016438,2]
[396559738,1765050643155,-602.46807268,0.00016438,2]
[396559739,1765050643165,-500.0,0.00016438,2]
[396559740,1765050643174,-500.0,0.00016438,2]
[396559741,1765050643184,-500.0,0.00016438,2]
[396559742,1765050643194,-500.0,0.00016438,2]
[396559743,1765050643203,-500.0,0.00016438,2]
[396559744,1765050643213,-500.0,0.00016438,2]
[396559745,1765050643222,-502.61509349,0.00016438,2]
[396559746,1765050643231,-500.0,0.00016438,2]
[396559747,1765050643240,-500.0,0.00016438,2]
[396559748,1765050643249,-2515.3,0.00016438,2]
[396559749,1765050643259,-500.0,0.00016438,2]
[396559751,1765050643268,-501.32258162,0.00016438,2]
[396559752,1765050643277,-500.0,0.00016438,2]
[396559753,1765050643287,-500.0,0.00016438,2]
[396559754,1765050643296,-500.0,0.00016438,2]
[396559755,1765050643306,-1831.13,0.00016438,2]
[396559756,1765050643316,-500.0,0.00016438,2]
[396559757,1765050643325,-500.0,0.00016438,2]
[396559758,1765050643335,-500.0,0.00016438,2]
[396559759,1765050643344,-504.40912743,0.00016438,2]
[396559760,1765050643353,-561.78,0.00016438,2]
[396559761,1765050643363,-500.0,0.00016438,2]
[396559762,1765050643373,-709.76,0.00016438,2]
[396559763,1765050643382,-500.0,0.00016438,2]
[396559764,1765050643392,-2926.87,0.00016438,2]
[396559765,1765050643403,-500.0,0.00016438,2]
[396559767,1765050643412,-500.0,0.00016438,2]
[396559768,1765050643422,-500.0,0.00016438,2]
[396559769,1765050643432,-500.0,0.00016438,2]
[396559770,1765050643441,-500.0,0.00016438,2]
[396559771,1765050643451,-500.0,0.00016438,2]
[396559772,1765050643461,-500.0,0.00016438,2]
[396559773,1765050643470,-502.65346538,0.00016438,2]
[396559774,1765050643481,-500.0,0.00016438,2]
[396559775,1765050643490,-512.95,0.00016438,2]
[396559776,1765050643500,-1163.06,0.00016438,2]
[396559777,1765050643509,-2287.58,0.00016438,2]
[396559778,1765050643518,-1809.84,0.00016438,2]
[396559779,1765050643527,-500.0,0.00016438,2]
[396559780,1765050643537,-1920.44,0.00016438,2]
[396559781,1765050643547,-657.39,0.00016438,2]
[396559782,1765050643556,-500.0,0.00016438,2]
[396559783,1765050643566,-500.0,0.00016438,2]